fUST/lending_fUST_20251221
["ID","MTS","AMOUNT","RATE_DAILY","PERIOD"]
[399330219,1766307788544,2000.0,0.0003287,30]
[399330220,1766307803522,9000.0,0.00032875,45]
[399330221,1766307815385,9000.0,0.00032875,45]
[399330222,1766307830887,5000.0,0.00032875,45]
[399330223,1766307840389,4462.46777995,9.647e-05,2]
[399330224,1766307840414,537.53222005,9.647e-05,2]
[399330225,1766307842586,300.0,9.646e-05,2]
[399330226,1766307846344,767.88,8.663e-05,2]
[399330227,1766307846745,1535.76,9.451e-05,2]
[399330228,1766307850422,329.09,0.00026744,30]
[399330229,1766307850822,658.18,0.00029175,30]
[399330230,1766307851223,987.27,0.00031607,30]
[399330231,1766307862659,5000.0,0.00032875,45]
[399330232,1766307863376,5000.0,9.647e-05,2]
[399330233,1766307867468,5000.0,0.00032875,45]
[399330234,1766307876874,5000.0,0.00032875,45]
[399330235,1766307876915,999.0,0.00032876,120]
[399330236,1766307877119,500.039229,0.00032877,30]
[399330237,1766307888229,-2939.98374761,9.551e-05,2]
[399330238,1766307902347,-7738.24612632,9.647e-05,2]
[399330239,1766307902521,-10000.01,9.647e-05,2]
[399330240,1766307902697,-10000.01,9.647e-05,2]
[399330241,1766307902880,-300.0,9.646e-05,2]
[399330242,1766307902914,-9400.01,9.647e-05,2]
[399330243,1766307909673,157.0,0.00031918,49]
[399330244,1766307909931,191.0,0.00030274,39]
[399330245,1766307910203,234.0,0.0002863,30]
[399330246,1766307916549,-574.12855637,9.647e-05,2]
[399330247,1766307916590,-8851.75288726,9.647e-05,2]
[399330248,1766307916745,-10000.01,9.647e-05,2]
[399330249,1766307922940,2000.0,0.0003287,30]
[399330250,1766307927918,-383.2583,8.756e-05,2]
[399330251,1766307929718,315.81,0.00027055,30]
[399330252,1766307930106,631.63,0.00029515,30]
[399330253,1766307930538,947.44,0.00031974,30]
[399330254,1766307943133,-353.6417,8.756e-05,2]
[399330255,1766307943165,-1473.79,9.552e-05,2]
[399330256,1766307943195,-168.30571457,9.646e-05,2]
[399330257,1766307943228,-500.0,9.646e-05,2]
[399330258,1766307943259,-517.89871917,9.646e-05,2]
[399330259,1766307943289,-1412.35705804,9.647e-05,2]
[399330260,1766307956207,1148.02361644,9.647e-05,2]
[399330261,1766308003439,715.71,8.74e-05,2]
[399330262,1766308003829,1431.42,9.535e-05,2]
[399330263,1766308004332,2000.0,0.000328,120]
[399330264,1766308007993,306.73,0.00027197,30]
[399330265,1766308008429,613.46,0.00029669,30]
[399330266,1766308008859,920.2,0.00032142,30]
[399330267,1766308057846,2000.0,0.0003287,30]
[399330268,1766308082326,664.96,8.734e-05,2]
[399330269,1766308082684,1329.92,9.528e-05,2]
[399330270,1766308088177,284.98,0.00029169,30]
[399330271,1766308088599,569.96,0.00031821,30]
[399330272,1766308095691,999.0,0.00032876,120]
[399330274,1766308162075,628.69,8.743e-05,2]
[399330275,1766308162520,1257.37,9.537e-05,2]
[399330276,1766308166262,269.44,0.00027538,30]
[399330277,1766308166683,538.87,0.00030042,30]
[399330278,1766308167583,808.31,0.00032545,30]
[399330279,1766308191987,2000.0,0.0003287,30]
[399330280,1766308225323,156.0,0.00031945,49]
[399330281,1766308225628,204.0,0.00029753,36]
[399330317,1766308240278,864.241607,0.00032877,31]
[399330322,1766308240594,864.241607,0.00032877,31]
[399330323,1766308240657,584.11,8.712e-05,2]
[399330324,1766308240955,864.241607,0.00032877,31]
[399330325,1766308241067,1168.22,9.504e-05,2]
[399330326,1766308241240,864.241607,0.00032877,31]
[399330327,1766308241537,864.241607,0.00032877,31]
[399330328,1766308241840,864.241607,0.00032877,31]
[399330329,1766308242162,864.241607,0.00032877,31]
[399330330,1766308242628,864.241607,0.00032877,31]
[399330331,1766308242928,864.241607,0.00032877,31]
[399330337,1766308243531,864.241607,0.00032877,31]
[399330339,1766308243676,-300.0,9.646e-05,2]
[399330340,1766308243686,-300.0,9.646e-05,2]
[399330341,1766308243696,-200.0,9.646e-05,2]
[399330342,1766308243886,864.241607,0.00032877,31]
[399330343,1766308244194,864.241607,0.00032877,31]
[399330344,1766308244496,864.241607,0.00032877,31]
[399330345,1766308244784,250.33,0.0002752,30]
[399330346,1766308244825,864.241607,0.00032877,31]
[399330347,1766308245265,864.241607,0.00032877,31]
[399330348,1766308245308,500.66,0.00030022,30]
[399330349,1766308245679,751.0,0.00032523,30]
[399330350,1766308245724,864.241607,0.00032877,31]
[399330351,1766308246005,864.241607,0.00032877,31]
[399330352,1766308246302,864.241607,0.00032877,31]
[399330353,1766308246599,864.241607,0.00032877,31]
[399330354,1766308246920,864.2416,0.00032877,31]
[399330362,1766308286285,510.0,0.00032877,30]
[399330363,1766308304272,1912.0,9.567e-05,2]
[399330364,1766308318863,307.61,8.678e-05,2]
[399330365,1766308318886,235.08,8.678e-05,2]
[399330366,1766308319276,1085.38,9.467e-05,2]
[399330367,1766308323157,232.58,0.00027718,30]
[399330368,1766308323561,465.16,0.00030238,30]
[399330369,1766308323955,697.74,0.00032758,30]
[399330370,1766308326377,2000.0,0.0003287,30]
[399330371,1766308360912,999.0,0.00032876,120]
[399330377,1766308398925,504.21,8.659e-05,2]
[399330378,1766308398998,1008.42,9.447e-05,2]
[399330379,1766308402705,216.09,0.00028315,30]
[399330380,1766308403106,432.18,0.00030889,30]
[399330381,1766308437876,381.86378411,9.184e-05,2]
[399330382,1766308461366,2000.0,0.0003287,30]
[399330383,1766308478026,476.71,8.667e-05,2]
[399330384,1766308478519,953.41,9.455e-05,2]
[399330385,1766308483108,204.3,0.00027369,30]
[399330386,1766308483493,408.6,0.00029857,30]
[399330387,1766308483896,612.91,0.00032345,30]
[399330388,1766308494700,5354.93621589,9.547e-05,2]
[399330389,1766308494725,10000.01,9.547e-05,2]
[399330390,1766308494749,10000.01,9.547e-05,2]
[399330391,1766308494773,10000.01,9.547e-05,2]
[399330392,1766308494798,10000.01,9.547e-05,2]
[399330393,1766308494824,10000.01,9.547e-05,2]
[399330394,1766308494850,10000.01,9.547e-05,2]
[399330395,1766308494875,10000.01,9.547e-05,2]
[399330396,1766308494900,2202.6437841,9.547e-05,2]
[399330397,1766308539897,169.0,0.00032493,53]
[399330398,1766308540155,156.0,0.00030301,39]
[399330399,1766308556982,468.83,8.734e-05,2]
[399330400,1766308557402,937.67,9.528e-05,2]
[399330401,1766308561122,200.93,0.00029073,30]
[399330402,1766308561515,401.86,0.00031716,30]
[399330403,1766308561915,5000.0,9.566e-05,2]
[399330404,1766308584834,1390.8662159,9.566e-05,2]
[399330405,1766308593383,999.0,0.00032876,120]
[399330406,1766308596212,2000.0,0.0003287,30]
[399330407,1766308642695,443.26,8.745e-05,2]
[399330408,1766308646772,189.97,0.00028934,30]
[399330409,1766308647169,379.94,0.00031564,30]
[399330410,1766308662773,150.0,0.0001,10]
[399330411,1766308677411,-886.52,9.54e-05,2]
[399330412,1766308682667,300.0,9.546e-05,2]
[399330413,1766308721449,240.73697256,9.546e-05,2]
[399330414,1766308721735,239.24296636,9.546e-05,2]
[399330415,1766308722653,419.08,8.766e-05,2]
[399330416,1766308730575,2000.0,0.0003287,30]
[399330417,1766308742701,300.0,9.546e-05,2]
[399330418,1766308778893,1000.0,0.00032877,30]
[399330419,1766308785227,5000.0,9.547e-05,2]
[399330420,1766308802203,300.0,9.546e-05,2]
[399330421,1766308803303,413.75,8.825e-05,2]
[399330422,1766308807416,177.32,0.00027372,30]
[399330423,1766308807951,354.64,0.00029861,30]
[399330424,1766308808029,1014.16006108,9.546e-05,2]
[399330425,1766308808052,185.83993892,9.546e-05,2]
[399330426,1766308808349,531.96,0.00032349,30]
[399330427,1766308809270,5000.0,9.547e-05,2]
[399330428,1766308819762,999.0,0.00032876,120]
[399330429,1766308832757,4814.17006108,9.547e-05,2]
[399330430,1766308832779,185.82993892,9.547e-05,2]
[399330431,1766308843693,151.0,0.00032877,31]
[399330432,1766308843982,151.0,0.00032877,31]
[399330433,1766308844364,151.0,0.00032877,31]
[399330434,1766308844662,151.0,0.00032877,31]
[399330435,1766308844949,151.0,0.00032877,31]
[399330436,1766308845976,154.728,0.00032877,31]
[399330437,1766308855632,5000.0,9.547e-05,2]
[399330438,1766308855935,500.0,9.546e-05,2]
[399330439,1766308856494,500.0,9.546e-05,2]
[399330440,1766308856524,500.0,9.546e-05,2]
[399330441,1766308856554,300.0,9.546e-05,2]
[399330442,1766308862963,300.0,9.546e-05,2]
[399330443,1766308865248,2000.0,0.0003287,30]
[399330444,1766308879408,2714.18006108,9.547e-05,2]
[399330445,1766308879430,2285.81993892,9.547e-05,2]
[399330446,1766308880443,600.01921001,9.546e-05,2]
[399330447,1766308882840,394.94,8.727e-05,2]
[399330448,1766308883269,789.89,9.52e-05,2]
[399330449,1766308888152,169.26,0.00027394,30]
[399330450,1766308888421,338.52,0.00029885,30]
[399330451,1766308888811,507.78,0.00032375,30]
[399330452,1766308902713,5000.0,9.547e-05,2]
[399330453,1766308922692,300.0,9.546e-05,2]
[399330454,1766308926228,629.34085107,9.547e-05,2]
[399330455,1766308926254,4370.65914893,9.547e-05,2]
[399330456,1766308949282,5000.0,9.547e-05,2]
[399330457,1766308952549,151.0,0.00032877,31]
[399330458,1766308952860,151.0,0.00032877,31]
[399330459,1766308953169,151.0,0.00032877,31]
[399330460,1766308953461,151.0,0.00032877,31]
[399330461,1766308953744,151.0,0.00032877,31]
[399330462,1766308954036,193.692795,0.00032877,31]
[399330463,1766308961559,397.7,8.751e-05,2]
[399330464,1766308961956,231.65085107,9.546e-05,2]
[399330465,1766308961983,563.74914893,9.546e-05,2]
[399330466,1766308965954,170.44,0.0002896,30]
[399330467,1766308966411,340.89,0.00031592,30]
[399330468,1766308972871,5000.0,9.547e-05,2]
[399330469,1766308982478,300.0,9.546e-05,2]
[399330470,1766308986231,1200.0,9.546e-05,2]
[399330471,1766308997469,2936.26085107,9.547e-05,2]
[399330472,1766309000064,2000.0,0.0003287,30]
[399330473,1766309035545,965.3075,0.00032876,120]
[399330474,1766309040767,381.27,8.753e-05,2]
[399330475,1766309044921,163.4,0.00028969,30]
[399330476,1766309045331,326.81,0.00031602,30]
[399330477,1766309062414,1123.5216607,0.00032876,120]
[399330478,1766309065525,10000.0,0.00032877,30]
[399330479,1766309084810,9059.5,0.00032877,30]
[399330480,1766309119846,370.18,8.692e-05,2]
[399330481,1766309120245,740.36,9.483e-05,2]
[399330482,1766309124222,158.65,0.00028955,30]
[399330483,1766309124388,317.3,0.00031587,30]
[399330484,1766309135947,2000.0,0.0003287,30]
[399330485,1766309198296,360.52,8.687e-05,2]
[399330486,1766309199153,721.05,9.476e-05,2]
[399330487,1766309208890,154.51,0.00027603,30]
[399330488,1766309209927,309.02,0.00030113,30]
[399330489,1766309209971,463.53,0.00032622,30]
[399330490,1766309266306,7807.9,8.788e-05,2]
[399330491,1766309266328,10000.01,8.788e-05,2]
[399330492,1766309266350,10000.01,8.788e-05,2]
[399330493,1766309266372,7195.905335,8.788e-05,2]
[399330494,1766309270298,2000.0,0.0003287,30]
[399330495,1766309284053,334.96,8.678e-05,2]
[399330496,1766309284497,669.92,9.467e-05,2]
[399330497,1766309303146,200.0,0.00027397,30]
[399330498,1766309304138,537.7286218,0.0003287,30]
[399330499,1766309308085,1645.59855556,0.00026,30]
[399330500,1766309371784,341.21,8.685e-05,2]
[399330501,1766309372173,682.43,9.474e-05,2]
[399330502,1766309379185,5000.0,0.0001,10]
[399330503,1766309402182,5000.0,9.536e-05,2]
[399330504,1766309404633,2000.0,0.0003287,30]
[399330505,1766309410660,7200.0,0.00032877,30]
[399330506,1766309425088,3976.37,9.536e-05,2]
[399330507,1766309425110,1023.63,9.536e-05,2]
[399330583,1766309438721,-476.32654036,9.541e-05,2]
[399331118,1766309448550,5000.0,9.536e-05,2]
[399331119,1766309450430,348.77,8.696e-05,2]
[399331120,1766309451126,697.55,9.486e-05,2]
[399331121,1766309454623,150.0,0.00024454,30]
[399331122,1766309455353,298.95,0.00026677,30]
[399331123,1766309455463,448.42,0.000289,30]
[399331124,1766309455882,597.9,0.00031123,30]
[399331125,1766309459109,10000.0,0.00032877,30]
[399331126,1766309472804,2930.06,9.536e-05,2]
[399331127,1766309472826,2069.94,9.536e-05,2]
[399331128,1766309473493,8128.0,0.00032877,30]
[399331129,1766309528163,323.03,8.702e-05,2]
[399331130,1766309528565,646.05,9.493e-05,2]
[399331131,1766309539868,2000.0,0.0003287,30]
[399331132,1766309607735,323.89,8.774e-05,2]
[399331133,1766309611799,150.0,0.000273,30]
[399331134,1766309612655,277.62,0.00029782,30]
[399331135,1766309613082,416.43,0.00032263,30]
[399331136,1766309670008,6637.1,9.447e-05,2]
[399331137,1766309670032,2906.89579004,9.447e-05,2]
[399331138,1766309674188,2000.0,0.0003287,30]
[399331139,1766309686347,309.03,8.703e-05,2]
[399331140,1766309686412,618.06,9.494e-05,2]
[399331141,1766309690300,150.0,0.00024486,30]
[399331142,1766309690725,264.88,0.00026712,30]
[399331143,1766309691107,397.32,0.00028938,30]
[399331144,1766309691532,529.76,0.00031164,30]
[399331145,1766309752099,6166.02420996,8.795e-05,2]
[399331146,1766309752122,9635.03167574,8.795e-05,2]
[399331147,1766309763955,324.44,8.728e-05,2]
[399331148,1766309764364,40.53832426,9.521e-05,2]
[399331149,1766309764389,608.35167574,9.521e-05,2]
[399331150,1766309768705,150.0,0.00028127,30]
[399331151,1766309769108,278.09,0.00030684,30]
[399331152,1766309798367,9391.65832426,9.447e-05,2]
[399331153,1766309798395,10000.01,9.447e-05,2]
[399331154,1766309798422,10000.01,9.447e-05,2]
[399331155,1766309798450,10000.01,9.447e-05,2]
[399331156,1766309798481,10000.01,9.447e-05,2]
[399331157,1766309798509,10000.01,9.447e-05,2]
[399331158,1766309798535,10000.01,9.447e-05,2]
[399331159,1766309798567,10000.01,9.447e-05,2]
[399331160,1766309798594,10000.01,9.447e-05,2]
[399331161,1766309798621,10000.01,9.447e-05,2]
[399331162,1766309808768,2000.0,0.0003287,30]
[399331163,1766309820464,400.0,0.0003287,30]
[399331164,1766309834809,-4668.20998373,9.352e-05,2]
[399331165,1766309834842,-300.0,9.446e-05,2]
[399331166,1766309843283,63.59003254,8.733e-05,2]
[399331167,1766309847985,221.21,0.000277,30]
[399331168,1766309848381,442.43,0.00030218,30]
[399331169,1766309848770,663.64,0.00032736,30]
[399331170,1766309860633,-452.56996746,8.733e-05,2]
[399331171,1766309877551,400.0,0.00032877,30]
[399331172,1766309889924,-300.0,9.446e-05,2]
[399331173,1766309897041,300.0,0.00032877,30]
[399331174,1766309913427,-200.0,9.446e-05,2]
[399331175,1766309924444,-524.38,8.74e-05,2]
[399331176,1766309943303,2000.0,0.0003287,30]
[399331177,1766309949091,-300.0,9.446e-05,2]
[399331178,1766309949152,-6132.83147583,9.447e-05,2]
[399331179,1766309952297,-10000.01,9.447e-05,2]
[399331180,1766309965024,-4664.93302549,9.447e-05,2]
[399331181,1766309965058,-670.14394902,9.534e-05,2]
[399331182,1766310001735,528.58,8.739e-05,2]
[399331183,1766310006110,226.54,0.00028196,30]
[399331184,1766310006511,453.07,0.00030759,30]
[399331185,1766310009855,3225.93042689,0.0003233,30]
[399331186,1766310039460,300.0,9.474e-05,2]
[399331187,1766310070407,5000.0,9.474e-05,2]
[399331188,1766310077465,2000.0,0.0003287,30]
[399331189,1766310081267,513.21,8.745e-05,2]
[399331190,1766310084877,219.95,0.00027315,30]
[399331191,1766310085307,439.89,0.00029799,30]
[399331193,1766310086178,659.84,0.00032282,30]
[399331194,1766310092054,3658.22,9.441e-05,2]
[399331195,1766310092080,9396.5407622,9.441e-05,2]
[399331196,1766310092998,603.4692378,9.474e-05,2]
[399331197,1766310093020,4396.5307622,9.474e-05,2]
[399331198,1766310116459,5000.0,9.474e-05,2]
[399331199,1766310139628,603.4792378,9.474e-05,2]
[399331200,1766310139651,4396.5207622,9.474e-05,2]
[399331201,1766310159377,529.94,8.751e-05,2]
[399331202,1766310162987,5000.0,9.474e-05,2]
[399331203,1766310163667,227.12,0.00028242,30]
[399331204,1766310164053,454.23,0.0003081,30]
[399331205,1766310166820,5025.30925788,0.00032877,30]
[399331206,1766310186192,73.5492378,9.474e-05,2]
[399331207,1766310186214,4926.4507622,9.474e-05,2]
[399331208,1766310209073,5000.0,9.474e-05,2]
[399331209,1766310212241,2000.0,0.0003287,30]
[399331210,1766310217286,73.5592378,8.907e-05,2]
[399331211,1766310217321,2133.8937681,8.907e-05,2]
[399331212,1766310228231,8000.0,0.00032877,60]
[399331213,1766310232167,5000.0,9.474e-05,2]
[399331214,1766310239601,514.52,8.723e-05,2]
[399331215,1766310243874,220.51,0.0002817,30]
[399331216,1766310244275,441.02,0.00030731,30]
[399331217,1766310256246,2351.5962319,9.474e-05,2]
[399331218,1766310256271,2648.4037681,9.474e-05,2]
[399331219,1766310280374,5000.0,0.00032877,50]
[399331220,1766310280758,5000.0,9.474e-05,2]
[399331222,1766310303722,5000.0,9.476e-05,2]
[399331223,1766310318581,0.01,8.757e-05,2]
[399331224,1766310318605,499.54,8.757e-05,2]
[399331225,1766310323209,214.09,0.00028856,30]
[399331226,1766310323599,428.19,0.00031479,30]
[399331227,1766310327628,5000.0,9.476e-05,2]
[399331228,1766310347018,2000.0,0.0003287,30]
[399331229,1766310350390,4500.47,9.476e-05,2]
[399331230,1766310350412,499.53,9.476e-05,2]
[399331232,1766310373373,5000.0,9.476e-05,2]
[399331233,1766310396309,4500.48,9.476e-05,2]
[399331234,1766310396331,499.52,9.476e-05,2]
[399331235,1766310400915,500.0,0.00032877,30]
[399331236,1766310401802,485.02,8.741e-05,2]
[399331237,1766310419346,5000.0,9.476e-05,2]
[399331238,1766310439507,2059.26247582,0.00032876,30]
[399331239,1766310440511,172.0084308,8.761e-05,2]
[399331240,1766310442407,3843.4615692,9.476e-05,2]
[399331241,1766310442439,1156.5384308,9.476e-05,2]
[399331242,1766310465969,5000.0,9.476e-05,2]
[399331243,1766310477542,165.336142,0.00028767,60]
[399331244,1766310481505,2000.0,0.0003287,30]
[399331245,1766310486721,493.32,8.801e-05,2]
[399331246,1766310567920,487.04,8.714e-05,2]
[399331247,1766310568318,974.07,9.507e-05,2]
[399331249,1766310607288,3006.66951726,9.147e-05,2]
[399331250,1766310615931,2000.0,0.0003287,30]
[399331270,1766310631659,-502.82712968,9.538e-05,2]
[399331272,1766310631669,-372.63072512,9.647e-05,2]
[399331274,1766310631678,-300.0,9.737e-05,2]
[399331275,1766310631688,-300.0,9.737e-05,2]
[399331276,1766310631698,-172.0,9.737e-05,2]
[399331277,1766310631708,-887.0,9.737e-05,2]
[399331278,1766310631718,-228.20752707,9.737e-05,2]
[399331279,1766310631729,-320.23864105,9.737e-05,2]
[399331280,1766310631739,-6729.26487011,9.738e-05,2]
[399331281,1766310637757,-4240.27146611,9.738e-05,2]
[399332095,1766310648050,509.51,8.766e-05,2]
[399332386,1766310652373,218.36,0.00029116,30]
[399332429,1766310652795,436.72,0.00031763,30]
[399332524,1766310665563,-1019.02,9.563e-05,2]
[399332525,1766310690721,5000.0,9.567e-05,2]
[399332527,1766310714312,5000.0,9.567e-05,2]
[399332528,1766310726855,0.01,8.788e-05,2]
[399332529,1766310726886,481.71,8.788e-05,2]
[399332530,1766310733055,206.45,0.00028194,30]
[399332531,1766310733464,412.9,0.00030757,30]
[399332532,1766310737245,5000.0,9.567e-05,2]
[399332533,1766310747200,-963.44,9.587e-05,2]
[399332534,1766310750335,2000.0,0.0003287,30]
[399332535,1766310794687,153.0,0.00032329,30]
[399332536,1766310807559,455.45,8.728e-05,2]
[399332537,1766310807955,910.89,9.521e-05,2]
[399332538,1766310809625,216.7837987,8.878e-05,2]
[399332539,1766310811715,195.19,0.00026311,30]
[399332540,1766310812145,390.38,0.00028703,30]
[399332541,1766310812545,585.57,0.00031095,30]
[399332542,1766310840052,100000.0,0.0003287,30]
[399332543,1766310884749,2000.0,0.0003287,30]
[399332544,1766310885127,423.15,8.722e-05,2]
[399332545,1766310885537,846.3,9.515e-05,2]
[399332546,1766310889331,181.35,0.00027568,30]
[399332547,1766310889755,362.7,0.00030074,30]
[399332548,1766310890172,544.05,0.00032581,30]
[399332549,1766310961997,5220.5562013,9.587e-05,2]
[399332550,1766310962034,10000.01,9.587e-05,2]
[399332551,1766310962072,10000.01,9.587e-05,2]
[399332552,1766310962115,10000.01,9.587e-05,2]
[399332553,1766310962138,10000.01,9.587e-05,2]
[399332554,1766310962161,891.1898712,9.587e-05,2]
[399332555,1766310962955,393.14,8.77e-05,2]
[399332556,1766310963833,786.29,9.567e-05,2]
[399332557,1766310968216,168.49,0.00028272,30]
[399332558,1766310969520,336.98,0.00030842,30]
[399332559,1766310973808,50000.0,0.0003287,30]
[399332560,1766310982101,891.0,0.0003287,30]
[399332561,1766310992877,195.133533,0.00030137,120]
[399332562,1766311000340,935.0,0.00032762,30]
[399332563,1766311019833,2000.0,0.0003287,30]
[399332564,1766311042597,371.7,8.767e-05,2]
[399332565,1766311042992,743.4,9.564e-05,2]
[399332566,1766311046729,159.3,0.00027014,30]
[399332567,1766311047134,318.6,0.0002947,30]
[399332568,1766311047547,477.9,0.00031926,30]
[399332569,1766311120881,345.34,8.767e-05,2]
[399332570,1766311121285,690.69,9.564e-05,2]
[399332571,1766311126000,150.0,0.00026895,30]
[399332572,1766311126036,296.01,0.0002934,30]
[399332573,1766311126069,444.01,0.00031785,30]
[399332574,1766311154642,2000.0,0.0003287,30]
[399332575,1766311199350,320.83,8.754e-05,2]
[399332576,1766311199773,641.66,9.55e-05,2]
[399332577,1766311203607,150.0,0.00026866,30]
[399332578,1766311204002,275.0,0.00029309,30]
[399332579,1766311204395,412.5,0.00031751,30]
[399332580,1766311279316,297.92,8.804e-05,2]
[399332581,1766311283472,150.0,0.00028502,30]
[399332582,1766311283776,-595.84,9.605e-05,2]
[399332583,1766311283869,255.36,0.00031093,30]
[399332584,1766311290238,2000.0,0.0003287,30]
[399332586,1766311322706,300.0,9.637e-05,2]
[399332588,1766311351676,224.16704873,9.637e-05,2]
[399332589,1766311351716,159.74526895,9.637e-05,2]
[399332590,1766311357555,281.39,8.722e-05,2]
[399332591,1766311358018,562.77,9.515e-05,2]
[399332592,1766311362142,150.0,0.0003001,30]
[399332593,1766311362542,241.19,0.00032738,30]
[399332594,1766311382479,300.0,9.637e-05,2]
[399332595,1766311407458,5045.0,0.000328,30]
[399332596,1766311424138,-257.72995279,9.638e-05,2]
[399332597,1766311424944,2000.0,0.0003287,30]
[399332598,1766311437025,265.66,8.746e-05,2]
[399332599,1766311437448,531.33,9.541e-05,2]
[399332600,1766311441220,150.0,0.00031841,30]
[399332601,1766311442563,300.0,9.637e-05,2]
[399332602,1766311470509,5000.0,0.000328,30]
[399332604,1766311502284,300.0,9.637e-05,2]
[399332605,1766311515772,253.61,8.764e-05,2]
[399332606,1766311516170,507.22,9.561e-05,2]
[399332607,1766311559675,2000.0,0.0003287,30]
[399332608,1766311562313,276.0,9.637e-05,2]
[399332609,1766311563848,4546.43768232,9.638e-05,2]
[399332610,1766311563875,453.56231768,9.638e-05,2]
[399332611,1766311586842,5000.0,9.638e-05,2]
[399332612,1766311596367,243.93,8.765e-05,2]
[399332613,1766311596762,487.86,9.562e-05,2]
[399332614,1766311600548,150.0,0.00031449,30]
[399332615,1766311609743,3814.65768232,9.638e-05,2]
[399332616,1766311609765,1185.34231768,9.638e-05,2]
[399332617,1766311632785,-244.16714324,9.638e-05,2]
[399332619,1766311633702,5000.0,9.638e-05,2]
[399332620,1766311634341,-261.43650454,9.638e-05,2]
[399332621,1766311636223,-192.33602283,9.638e-05,2]
[399332622,1766311637636,-155.47625204,9.638e-05,2]
[399332623,1766311656677,3814.66768232,9.638e-05,2]
[399332624,1766311656699,1185.33231768,9.638e-05,2]
[399332625,1766311674894,232.71,8.783e-05,2]
[399332626,1766311675302,465.41,9.582e-05,2]
[399332627,1766311679709,150.0,0.0003126,30]
[399332628,1766311680159,5000.0,9.638e-05,2]
[399332629,1766311686663,1200.0,9.637e-05,2]
[399332630,1766311694171,2000.0,0.0003287,30]
[399332631,1766311703072,1916.55768232,9.638e-05,2]
[399332632,1766311703098,3083.44231768,9.638e-05,2]
[399332633,1766311727348,5000.0,9.638e-05,2]
[399332634,1766311749902,1916.56768232,9.638e-05,2]
[399332635,1766311749928,3083.43231768,9.638e-05,2]
[399332636,1766311757373,221.91,8.819e-05,2]
[399332637,1766311757776,443.82,9.621e-05,2]
[399332638,1766311767859,-181.36968972,9.638e-05,2]
[399332639,1766311770081,-214.15,9.638e-05,2]
[399332640,1766311772245,-200.0,9.638e-05,2]
[399332641,1766311773308,150.0,0.00031606,30]
[399332642,1766311773730,5000.0,9.638e-05,2]
[399332643,1766311773862,-309.79397595,9.638e-05,2]
[399332644,1766311777019,-290.20602405,9.638e-05,2]
[399332645,1766311781170,-244.3298509,9.638e-05,2]
[399332646,1766311797202,1250.84768232,9.638e-05,2]
[399332647,1766311797227,3749.15231768,9.638e-05,2]
[399332648,1766311802274,300.0,9.637e-05,2]
[399332649,1766311804805,555.0,9.638e-05,2]
[399332650,1766311812169,574.12855637,9.638e-05,2]
[399332651,1766311813740,418.8527675,9.556e-05,2]
[399332652,1766311814786,2773.56790519,9.638e-05,2]
[399332653,1766311820025,1629.30845326,9.638e-05,2]
[399332654,1766311820048,277.72926419,9.638e-05,2]